[Event "2026 Biel Blitz Open"]
[Site "Biel, CH"]
[Date "2026.07.19"]
[Round "11"]
[White "Dong, Hongfu"]
[Black "Cao, Qingfeng"]
[Result "1/2-1/2"]
[Board "10"]
[TimeControl "180+2"]
[WhiteFideId "8626960"]
[BlackFideId "8627568"]
[WhiteElo "2290"]
[BlackElo "2264"]
[BlackTitle "IM"]
[WhiteClock "0:00:04"]
[BlackClock "0:00:03"]
[Variant "Standard"]
[EndDate "2026.07.19"]
[EndTime "15:30:54"]

1. e4 {[%clk 0:03:03]}  g6 {[%clk 0:03:04]} 2. d4 {[%clk 0:02:59]}  Bg7 {[%clk 0:03:04]} 3. Nc3 {[%clk 0:03:00]}  d5 {[%clk 0:03:05]}
4. Nxd5 {[%clk 0:02:57]}  c6 {[%clk 0:02:55]} 5. Ne3 {[%clk 0:02:42]}  Qxd4 {[%clk 0:02:54]} 6. Qxd4 {[%clk 0:02:43]}  Bxd4 {[%clk 0:02:55]}
7. c3 {[%clk 0:02:24]}  Bg7 {[%clk 0:02:53]} 8. Nc4 {[%clk 0:02:24]}  Nd7 {[%clk 0:02:36]} 9. Be3 {[%clk 0:02:16]}  Ngf6 {[%clk 0:02:24]}
10. f3 {[%clk 0:02:16]}  h5 {[%clk 0:02:22]} 11. Nh3 {[%clk 0:02:10]}  Bh6 {[%clk 0:02:13]} 12. Ng5 {[%clk 0:02:06]}  Nf8 {[%clk 0:01:47]}
13. h4 {[%clk 0:02:05]}  Ne6 {[%clk 0:01:46]} 14. g3 {[%clk 0:01:33]}  b6 {[%clk 0:01:09]} 15. Bh3 {[%clk 0:01:11]}  Nc7 {[%clk 0:01:04]}
16. Bxc8 {[%clk 0:01:00]}  Rxc8 {[%clk 0:01:04]} 17. O-O-O {[%clk 0:00:43]}  O-O {[%clk 0:00:56]} 18. Bf4 {[%clk 0:00:38]}  Kg7 {[%clk 0:00:46]}
19. Rd3 {[%clk 0:00:29]}  Na6 {[%clk 0:00:29]} 20. Rhd1 {[%clk 0:00:19]}  Nc5 {[%clk 0:00:27]} 21. R3d2 {[%clk 0:00:17]}  Nh7 {[%clk 0:00:14]}
22. Be3 {[%clk 0:00:12]}  Ne6 {[%clk 0:00:06]} 23. Nxe6+ {[%clk 0:00:12]}  fxe6 {[%clk 0:00:07]} 24. Bxh6+ {[%clk 0:00:08]}  Kxh6 {[%clk 0:00:02]}
25. Ne5 {[%clk 0:00:05]}  Nf6 {[%clk 0:00:08]} 26. Rd3 {[%clk 0:00:04]}  c5 {[%clk 0:00:09]} 27. Kc2 {[%clk 0:00:05]}  g5 {[%clk 0:00:09]}
28. hxg5+ {[%clk 0:00:04]}  Kxg5 {[%clk 0:00:10]} 29. Rh1 {[%clk 0:00:05]}  b5 {[%clk 0:00:05]} 30. Rd2 {[%clk 0:00:06]}  b4 {[%clk 0:00:05]}
31. c4 {[%clk 0:00:03]}  Kh6 {[%clk 0:00:06]} 32. Rdh2 {[%clk 0:00:04]}  Kg7 {[%clk 0:00:07]} 33. Rd2 {[%clk 0:00:05]}  Rfd8 {[%clk 0:00:06]}
34. Rhd1 {[%clk 0:00:06]}  Rxd2+ {[%clk 0:00:05]} 35. Rxd2 {[%clk 0:00:07]}  a6 {[%clk 0:00:06]} 36. Kb3 {[%clk 0:00:08]}  Rh8 {[%clk 0:00:05]}
37. Rh2 {[%clk 0:00:07]}  Rd8 {[%clk 0:00:06]} 38. Kc2 {[%clk 0:00:08]}  a5 {[%clk 0:00:06]} 39. Rd2 {[%clk 0:00:04]}  Ra8 {[%clk 0:00:05]}
40. Nd7 {[%clk 0:00:03]}  Rc8 {[%clk 0:00:04]} 41. Ne5 {[%clk 0:00:03]}  Ra8 {[%clk 0:00:03]} 42. Nd7 {[%clk 0:00:04]} 1/2-1/2

[Event "2026 Biel Blitz Open"]
[Site "Biel, CH"]
[Date "2026.07.19"]
[Round "11"]
[White "Omar, Noaman"]
[Black "Gautier, Anand"]
[Result "0-1"]
[Board "11"]
[TimeControl "180+2"]
[WhiteFideId "9300244"]
[BlackFideId "26010186"]
[WhiteElo "2274"]
[BlackElo "2198"]
[WhiteTitle "IM"]
[BlackTitle "FM"]
[WhiteClock "0:00:05"]
[BlackClock "0:00:14"]
[Variant "Standard"]
[EndDate "2026.07.19"]
[EndTime "15:23:36"]

1. d4 {[%clk 0:03:03]}  Nf6 {[%clk 0:03:04]} 2. c4 {[%clk 0:03:04]}  g6 {[%clk 0:03:05]} 3. Nc3 {[%clk 0:03:05]}  Bg7 {[%clk 0:03:06]}
4. e4 {[%clk 0:03:06]}  d6 {[%clk 0:03:08]} 5. f3 {[%clk 0:03:06]}  O-O {[%clk 0:03:08]} 6. Be3 {[%clk 0:03:07]}  Nc6 {[%clk 0:03:06]}
7. Nge2 {[%clk 0:03:01]}  a6 {[%clk 0:03:10]} 8. Qd2 {[%clk 0:02:45]}  Na5 {[%clk 0:03:11]} 9. Nf4 {[%clk 0:02:42]}  b5 {[%clk 0:03:09]}
10. O-O-O {[%clk 0:02:18]}  Rb8 {[%clk 0:02:54]} 11. e5 {[%clk 0:02:18]}  Nd7 {[%clk 0:02:43]} 12. e6 {[%clk 0:02:17]}  Nb6 {[%clk 0:02:32]}
13. exf7+ {[%clk 0:02:02]}  Rxf7 {[%clk 0:02:33]} 14. c5 {[%clk 0:01:25]}  Nbc4 {[%clk 0:02:32]} 15. Qe1 {[%clk 0:01:19]}  Nxe3 {[%clk 0:02:20]}
16. Qxe3 {[%clk 0:01:20]}  Bh6 {[%clk 0:01:44]} 17. g3 {[%clk 0:01:20]}  Qf8 {[%clk 0:01:20]} 18. Kb1 {[%clk 0:01:11]}  e5 {[%clk 0:00:52]}
19. dxe5 {[%clk 0:01:08]}  dxe5 {[%clk 0:00:54]} 20. Qxe5 {[%clk 0:00:50]}  Bf5+ {[%clk 0:00:55]} 21. Ka1 {[%clk 0:00:39]}  Bg7 {[%clk 0:00:54]}
22. Qd5 {[%clk 0:00:35]}  Kh8 {[%clk 0:00:46]} 23. Ne6 {[%clk 0:00:31]}  Bxe6 {[%clk 0:00:45]} 24. Qxe6 {[%clk 0:00:31]}  Rxf3 {[%clk 0:00:40]}
25. Qd5 {[%clk 0:00:12]}  Rf5 {[%clk 0:00:29]} 26. Qd2 {[%clk 0:00:10]}  Qxc5 {[%clk 0:00:26]} 27. Ne4 {[%clk 0:00:05]}  Qe5 {[%clk 0:00:14]} 0-1

[Event "2026 Biel Blitz Open"]
[Site "Biel, CH"]
[Date "2026.07.19"]
[Round "11"]
[White "Haimovich, Tal"]
[Black "Coban, Ege"]
[Result "1-0"]
[Board "12"]
[TimeControl "180+2"]
[WhiteFideId "2801698"]
[BlackFideId "26320304"]
[WhiteElo "2347"]
[BlackElo "1936"]
[WhiteTitle "IM"]
[WhiteClock "0:00:13"]
[BlackClock "0:00:05"]
[Variant "Standard"]
[EndDate "2026.07.19"]
[EndTime "15:26:05"]

1. Nf3 {[%clk 0:03:03]}  c5 {[%clk 0:03:03]} 2. b3 {[%clk 0:03:03]}  Nc6 {[%clk 0:03:00]} 3. Bb2 {[%clk 0:03:03]}  d6 {[%clk 0:03:00]}
4. e3 {[%clk 0:03:03]}  Bf5 {[%clk 0:02:41]} 5. d4 {[%clk 0:02:59]}  cxd4 {[%clk 0:02:40]} 6. exd4 {[%clk 0:02:55]}  Nf6 {[%clk 0:02:41]}
7. Nbd2 {[%clk 0:02:45]}  g6 {[%clk 0:02:39]} 8. Bb5 {[%clk 0:02:34]}  a6 {[%clk 0:02:38]} 9. Be2 {[%clk 0:02:31]}  Bg7 {[%clk 0:02:37]}
10. a3 {[%clk 0:02:29]}  O-O {[%clk 0:02:35]} 11. O-O {[%clk 0:02:29]}  Qd7 {[%clk 0:02:28]} 12. c4 {[%clk 0:02:27]}  d5 {[%clk 0:01:48]}
13. c5 {[%clk 0:02:15]}  Ne4 {[%clk 0:01:46]} 14. b4 {[%clk 0:02:12]}  Rad8 {[%clk 0:01:45]} 15. Re1 {[%clk 0:02:04]}  Qc7 {[%clk 0:01:43]}
16. Nf1 {[%clk 0:02:02]}  Rfe8 {[%clk 0:01:34]} 17. Ne3 {[%clk 0:02:01]}  Bc8 {[%clk 0:01:34]} 18. Qb3 {[%clk 0:01:54]}  e6 {[%clk 0:01:17]}
19. a4 {[%clk 0:01:53]}  b6 {[%clk 0:01:10]} 20. Rab1 {[%clk 0:01:35]}  Bd7 {[%clk 0:01:09]} 21. Bxa6 {[%clk 0:01:25]}  bxc5 {[%clk 0:01:09]}
22. dxc5 {[%clk 0:01:17]}  Bxb2 {[%clk 0:00:49]} 23. Qxb2 {[%clk 0:01:17]}  Rb8 {[%clk 0:00:47]} 24. Bb5 {[%clk 0:01:17]}  Ne7 {[%clk 0:00:40]}
25. Bxd7 {[%clk 0:01:13]}  Qxd7 {[%clk 0:00:41]} 26. Qa3 {[%clk 0:01:07]}  Ra8 {[%clk 0:00:24]} 27. b5 {[%clk 0:01:04]}  Reb8 {[%clk 0:00:29]}
28. c6 {[%clk 0:01:03]}  Qc7 {[%clk 0:00:30]} 29. Rec1 {[%clk 0:00:54]}  Nc8 {[%clk 0:00:31]} 30. Qb4 {[%clk 0:00:44]}  Ncd6 {[%clk 0:00:32]}
31. Ne5 {[%clk 0:00:40]}  Nxb5 {[%clk 0:00:28]} 32. axb5 {[%clk 0:00:40]}  Qxe5 {[%clk 0:00:29]} 33. c7 {[%clk 0:00:40]}  Rc8 {[%clk 0:00:21]}
34. b6 {[%clk 0:00:40]}  Nd6 {[%clk 0:00:22]} 35. b7 {[%clk 0:00:38]}  Nxb7 {[%clk 0:00:23]} 36. Qxb7 {[%clk 0:00:39]}  d4 {[%clk 0:00:24]}
37. Nf1 {[%clk 0:00:36]}  Kg7 {[%clk 0:00:24]} 38. Nd2 {[%clk 0:00:36]}  Qd6 {[%clk 0:00:19]} 39. Nf3 {[%clk 0:00:34]}  d3 {[%clk 0:00:20]}
40. h3 {[%clk 0:00:33]}  Qd7 {[%clk 0:00:20]} 41. Qc6 {[%clk 0:00:31]}  Qe7 {[%clk 0:00:20]} 42. Qc3+ {[%clk 0:00:27]}  Qf6 {[%clk 0:00:15]}
43. Qxd3 {[%clk 0:00:30]}  Ra7 {[%clk 0:00:15]} 44. Qd7 {[%clk 0:00:30]}  Raa8 {[%clk 0:00:16]} 45. Rc2 {[%clk 0:00:29]}  Qf4 {[%clk 0:00:14]}
46. Rbc1 {[%clk 0:00:29]}  e5 {[%clk 0:00:11]} 47. Qd6 {[%clk 0:00:29]}  f6 {[%clk 0:00:12]} 48. Rc4 {[%clk 0:00:27]}  Qf5 {[%clk 0:00:12]}
49. Nd2 {[%clk 0:00:25]}  Ra2 {[%clk 0:00:12]} 50. Nf3 {[%clk 0:00:11]}  e4 {[%clk 0:00:12]} 51. Rc5 {[%clk 0:00:11]}  exf3 {[%clk 0:00:03]}
52. Rxf5 {[%clk 0:00:11]}  fxg2 {[%clk 0:00:04]} 53. Qd7+ {[%clk 0:00:12]}  Kh6 {[%clk 0:00:05]} 54. Qxc8 {[%clk 0:00:13]} 1-0

[Event "2026 Biel Blitz Open"]
[Site "Biel, CH"]
[Date "2026.07.19"]
[Round "11"]
[White "Filipovic, Branko"]
[Black "Elmi, Saad Abobaker"]
[Result "0-1"]
[Board "13"]
[TimeControl "180+2"]
[WhiteFideId "14507951"]
[BlackFideId "1553259"]
[WhiteElo "2109"]
[BlackElo "2409"]
[WhiteTitle "IM"]
[BlackTitle "IM"]
[WhiteClock "0:01:10"]
[BlackClock "0:01:30"]
[Variant "Standard"]
[EndDate "2026.07.19"]
[EndTime "15:31:10"]

1. d4 {[%clk 0:03:03]}  g6 {[%clk 0:03:03]} 2. e4 {[%clk 0:03:04]}  Bg7 {[%clk 0:03:04]} 3. Nc3 {[%clk 0:03:05]}  c6 {[%clk 0:03:06]}
4. f4 {[%clk 0:03:06]}  d5 {[%clk 0:03:07]} 5. e5 {[%clk 0:03:07]}  h5 {[%clk 0:03:08]} 6. Be3 {[%clk 0:03:02]}  Nh6 {[%clk 0:03:07]}
7. Qd2 {[%clk 0:02:57]}  b5 {[%clk 0:03:02]} 8. Nf3 {[%clk 0:02:47]}  Bg4 {[%clk 0:03:01]} 9. Be2 {[%clk 0:02:46]}  Bxf3 {[%clk 0:03:00]}
10. Bxf3 {[%clk 0:02:46]}  e6 {[%clk 0:02:59]} 11. O-O {[%clk 0:02:40]}  Nd7 {[%clk 0:02:57]} 12. b3 {[%clk 0:02:34]}  Bf8 {[%clk 0:02:51]}
13. Ne2 {[%clk 0:02:34]}  Be7 {[%clk 0:02:48]} 14. c3 {[%clk 0:02:20]}  Nf5 {[%clk 0:02:39]} 15. Bf2 {[%clk 0:02:21]}  Nh4 {[%clk 0:02:37]}
16. Be3 {[%clk 0:01:56]}  a5 {[%clk 0:02:29]} 17. Rac1 {[%clk 0:01:49]}  a4 {[%clk 0:02:27]} 18. b4 {[%clk 0:01:50]}  Nb6 {[%clk 0:02:28]}
19. g3 {[%clk 0:01:45]}  Nc4 {[%clk 0:02:16]} 20. Qd3 {[%clk 0:01:44]}  Nf5 {[%clk 0:01:57]} 21. Bf2 {[%clk 0:01:45]}  g5 {[%clk 0:01:36]}
22. fxg5 {[%clk 0:01:25]}  Bxg5 {[%clk 0:01:36]} 23. Rfe1 {[%clk 0:01:17]}  Bxc1 {[%clk 0:01:37]} 24. Rxc1 {[%clk 0:01:19]}  Qg5 {[%clk 0:01:33]}
25. Kh1 {[%clk 0:01:11]}  h4 {[%clk 0:01:30]} 26. g4 {[%clk 0:01:10]}  Ng3+ {[%clk 0:01:30]} 0-1

[Event "2026 Biel Blitz Open"]
[Site "Biel, CH"]
[Date "2026.07.19"]
[Round "11"]
[White "Schweizer, Samuel"]
[Black "Fogo Esquivel, Levi Kalani Alexander"]
[Result "0-1"]
[Board "14"]
[TimeControl "180+2"]
[WhiteFideId "1325353"]
[BlackFideId "5183189"]
[WhiteElo "2006"]
[BlackElo "2219"]
[BlackTitle "FM"]
[WhiteClock "0:00:57"]
[BlackClock "0:01:50"]
[Variant "Standard"]
[EndDate "2026.07.19"]
[EndTime "15:22:40"]

1. e4 {[%clk 0:03:01]}  e5 {[%clk 0:03:03]} 2. Nf3 {[%clk 0:03:02]}  d5 {[%clk 0:03:04]} 3. d4 {[%clk 0:02:58]}  exd4 {[%clk 0:03:04]}
4. Qxd4 {[%clk 0:02:46]}  Nc6 {[%clk 0:03:00]} 5. Qe3 {[%clk 0:02:45]}  dxe4 {[%clk 0:02:46]} 6. Qxe4+ {[%clk 0:02:41]}  Be7 {[%clk 0:02:45]}
7. Bg5 {[%clk 0:02:32]}  Be6 {[%clk 0:02:44]} 8. Bxe7 {[%clk 0:02:31]}  Ngxe7 {[%clk 0:02:44]} 9. Bd3 {[%clk 0:02:29]}  Bf5 {[%clk 0:02:44]}
10. Qe3 {[%clk 0:02:30]}  Bxd3 {[%clk 0:02:44]} 11. cxd3 {[%clk 0:02:30]}  O-O {[%clk 0:02:43]} 12. O-O {[%clk 0:02:30]}  Nb4 {[%clk 0:02:39]}
13. Qe4 {[%clk 0:02:21]}  Nc2 {[%clk 0:02:37]} 14. Nc3 {[%clk 0:02:20]}  Nxa1 {[%clk 0:02:38]} 15. Rxa1 {[%clk 0:02:21]}  Nc6 {[%clk 0:02:34]}
16. h4 {[%clk 0:02:17]}  Re8 {[%clk 0:02:34]} 17. Qg4 {[%clk 0:02:17]}  Qxd3 {[%clk 0:02:32]} 18. Rd1 {[%clk 0:02:13]}  Qg6 {[%clk 0:02:31]}
19. Qh3 {[%clk 0:02:04]}  Rad8 {[%clk 0:02:29]} 20. Rf1 {[%clk 0:02:01]}  Nd4 {[%clk 0:02:26]} 21. h5 {[%clk 0:02:02]}  Qf5 {[%clk 0:02:23]}
22. Qxf5 {[%clk 0:01:48]}  Nxf5 {[%clk 0:02:24]} 23. g3 {[%clk 0:01:32]}  Nd4 {[%clk 0:02:22]} 24. Nxd4 {[%clk 0:01:24]}  Rxd4 {[%clk 0:02:23]}
25. Nb5 {[%clk 0:01:27]}  Rd7 {[%clk 0:02:22]} 26. a4 {[%clk 0:01:23]}  c6 {[%clk 0:02:21]} 27. Nc3 {[%clk 0:01:24]}  Rd2 {[%clk 0:02:22]}
28. Rb1 {[%clk 0:01:23]}  h6 {[%clk 0:02:21]} 29. Kf1 {[%clk 0:01:23]}  Rc2 {[%clk 0:02:21]} 30. a5 {[%clk 0:01:22]}  Rd8 {[%clk 0:02:21]}
31. Ne4 {[%clk 0:01:20]}  f5 {[%clk 0:02:19]} 32. Nc3 {[%clk 0:01:19]}  Rdd2 {[%clk 0:02:20]} 33. Nd1 {[%clk 0:01:19]}  Kf7 {[%clk 0:02:18]}
34. a6 {[%clk 0:01:18]}  bxa6 {[%clk 0:02:18]} 35. Ra1 {[%clk 0:01:18]}  Kf6 {[%clk 0:02:18]} 36. b4 {[%clk 0:01:14]}  Kg5 {[%clk 0:02:18]}
37. Kg2 {[%clk 0:01:13]}  Kxh5 {[%clk 0:02:17]} 38. Kf3 {[%clk 0:01:11]}  g5 {[%clk 0:02:06]} 39. Kg2 {[%clk 0:01:02]}  Kg6 {[%clk 0:01:56]}
40. Kf3 {[%clk 0:01:00]}  h5 {[%clk 0:01:56]} 41. Kg2 {[%clk 0:01:01]}  g4 {[%clk 0:01:48]} 42. Kg1 {[%clk 0:01:01]}  Kg5 {[%clk 0:01:49]}
43. Kf1 {[%clk 0:01:00]}  h4 {[%clk 0:01:49]} 44. gxh4+ {[%clk 0:01:00]}  Kxh4 {[%clk 0:01:50]} 45. Kg1 {[%clk 0:00:57]}  f4 {[%clk 0:01:50]} 0-1

[Event "2026 Biel Blitz Open"]
[Site "Biel, CH"]
[Date "2026.07.19"]
[Round "11"]
[White "Maruntis, Patrik-Robert"]
[Black "Ashwath Kaushik"]
[Result "0-1"]
[Board "15"]
[TimeControl "180+2"]
[WhiteFideId "1259997"]
[BlackFideId "33387230"]
[WhiteElo "2167"]
[BlackElo "2122"]
[BlackTitle "FM"]
[WhiteClock "0:00:03"]
[BlackClock "0:01:31"]
[Variant "Standard"]
[EndDate "2026.07.19"]
[EndTime "15:22:48"]

1. e4 {[%clk 0:03:00]}  e6 {[%clk 0:03:03]} 2. d4 {[%clk 0:03:01]}  d5 {[%clk 0:03:05]} 3. Nd2 {[%clk 0:02:55]}  c5 {[%clk 0:03:05]}
4. exd5 {[%clk 0:02:55]}  Qxd5 {[%clk 0:03:04]} 5. Ngf3 {[%clk 0:02:56]}  cxd4 {[%clk 0:03:03]} 6. Bc4 {[%clk 0:02:53]}  Qd6 {[%clk 0:03:04]}
7. O-O {[%clk 0:02:28]}  Nf6 {[%clk 0:03:05]} 8. Nb3 {[%clk 0:02:29]}  Nc6 {[%clk 0:03:02]} 9. Nbxd4 {[%clk 0:02:29]}  Nxd4 {[%clk 0:03:03]}
10. Nxd4 {[%clk 0:02:22]}  Be7 {[%clk 0:03:04]} 11. Be3 {[%clk 0:01:01]}  O-O {[%clk 0:03:01]} 12. Nb3 {[%clk 0:00:39]}  Qc7 {[%clk 0:03:00]}
13. Qe2 {[%clk 0:00:31]}  a6 {[%clk 0:03:00]} 14. a4 {[%clk 0:00:32]}  Bd7 {[%clk 0:02:58]} 15. a5 {[%clk 0:00:27]}  Rac8 {[%clk 0:02:58]}
16. Nd2 {[%clk 0:00:18]}  Bc6 {[%clk 0:02:56]} 17. Bb6 {[%clk 0:00:17]}  Qb8 {[%clk 0:02:57]} 18. h3 {[%clk 0:00:13]}  Nd5 {[%clk 0:02:47]}
19. Bxd5 {[%clk 0:00:12]}  Bxd5 {[%clk 0:02:47]} 20. c4 {[%clk 0:00:13]}  Bc6 {[%clk 0:02:48]} 21. b3 {[%clk 0:00:08]}  Bf6 {[%clk 0:02:47]}
22. Rac1 {[%clk 0:00:07]}  Qf4 {[%clk 0:02:47]} 23. Qe3 {[%clk 0:00:06]}  Qf5 {[%clk 0:02:43]} 24. Nf3 {[%clk 0:00:04]}  e5 {[%clk 0:02:28]}
25. Rfe1 {[%clk 0:00:06]}  Rfe8 {[%clk 0:02:28]} 26. Rcd1 {[%clk 0:00:07]}  Qg6 {[%clk 0:02:01]} 27. Kh2 {[%clk 0:00:05]}  e4 {[%clk 0:01:52]}
28. Nd4 {[%clk 0:00:05]}  Bg5 {[%clk 0:01:52]} 29. Qg3 {[%clk 0:00:04]}  Qh6 {[%clk 0:01:38]} 30. Nf5 {[%clk 0:00:03]}  Qf6 {[%clk 0:01:31]} 0-1

[Event "2026 Biel Blitz Open"]
[Site "Biel, CH"]
[Date "2026.07.19"]
[Round "11"]
[White "Erne, Raphael"]
[Black "Materia, Matteo"]
[Result "1-0"]
[Board "16"]
[TimeControl "180+2"]
[WhiteFideId "1341928"]
[BlackFideId "45150575"]
[WhiteElo "2128"]
[BlackElo "1881"]
[WhiteClock "0:00:31"]
[BlackClock "0:01:48"]
[Variant "Standard"]
[EndDate "2026.07.19"]
[EndTime "15:22:58"]

1. c4 {[%clk 0:03:02]}  d6 {[%clk 0:03:03]} 2. g3 {[%clk 0:03:03]}  g6 {[%clk 0:03:03]} 3. Bg2 {[%clk 0:03:03]}  Bg7 {[%clk 0:03:05]}
4. Nc3 {[%clk 0:03:04]}  e5 {[%clk 0:03:03]} 5. d3 {[%clk 0:03:00]}  f5 {[%clk 0:03:04]} 6. Nf3 {[%clk 0:02:59]}  Nf6 {[%clk 0:03:05]}
7. O-O {[%clk 0:02:59]}  O-O {[%clk 0:03:05]} 8. b4 {[%clk 0:02:59]}  a5 {[%clk 0:03:02]} 9. b5 {[%clk 0:02:56]}  b6 {[%clk 0:03:03]}
10. Nxe5 {[%clk 0:02:48]}  Ra7 {[%clk 0:03:02]} 11. Nc6 {[%clk 0:02:32]}  Nxc6 {[%clk 0:03:03]} 12. Bxc6 {[%clk 0:02:34]}  Bb7 {[%clk 0:02:43]}
13. Bxb7 {[%clk 0:02:31]}  Rxb7 {[%clk 0:02:44]} 14. Bb2 {[%clk 0:02:29]}  Rb8 {[%clk 0:02:42]} 15. Re1 {[%clk 0:02:20]}  Qd7 {[%clk 0:02:42]}
16. Qd2 {[%clk 0:02:16]}  Rbe8 {[%clk 0:02:43]} 17. e3 {[%clk 0:02:12]}  d5 {[%clk 0:02:41]} 18. cxd5 {[%clk 0:02:00]}  Nxd5 {[%clk 0:02:42]}
19. Nxd5 {[%clk 0:02:01]}  Qxd5 {[%clk 0:02:42]} 20. Bxg7 {[%clk 0:02:01]}  Kxg7 {[%clk 0:02:43]} 21. Qc3+ {[%clk 0:01:56]}  Qe5 {[%clk 0:02:43]}
22. d4 {[%clk 0:01:51]}  Qd6 {[%clk 0:02:41]} 23. Rac1 {[%clk 0:01:49]}  Rf7 {[%clk 0:02:45]} 24. Qb3 {[%clk 0:01:48]}  Ree7 {[%clk 0:02:44]}
25. Rc6 {[%clk 0:01:48]}  Qd7 {[%clk 0:02:32]} 26. Rec1 {[%clk 0:01:48]}  f4 {[%clk 0:02:19]} 27. Rxc7 {[%clk 0:01:02]}  Qxc7 {[%clk 0:02:18]}
28. Rxc7 {[%clk 0:01:03]}  Rxc7 {[%clk 0:02:19]} 29. gxf4 {[%clk 0:01:04]}  Rc1+ {[%clk 0:02:11]} 30. Kg2 {[%clk 0:01:04]}  Rfc7 {[%clk 0:02:12]}
31. Qe6 {[%clk 0:01:02]}  R7c2 {[%clk 0:02:04]} 32. Qe7+ {[%clk 0:00:34]}  Kg8 {[%clk 0:02:05]} 33. d5 {[%clk 0:00:34]}  Rxa2 {[%clk 0:01:55]}
34. d6 {[%clk 0:00:35]}  Rcc2 {[%clk 0:01:56]} 35. Kf3 {[%clk 0:00:34]}  Rxf2+ {[%clk 0:01:51]} 36. Ke4 {[%clk 0:00:35]}  Ra4+ {[%clk 0:01:51]}
37. Ke5 {[%clk 0:00:31]}  Re2 {[%clk 0:01:48]} 38. Kf6 {[%clk 0:00:31]} 1-0

[Event "2026 Biel Blitz Open"]
[Site "Biel, CH"]
[Date "2026.07.19"]
[Round "11"]
[White "Vihaan Dumir"]
[Black "Fernandes Barbosa Dos Santos, Gabriel"]
[Result "0-1"]
[Board "17"]
[TimeControl "180+2"]
[WhiteFideId "25901010"]
[BlackFideId "1354388"]
[WhiteElo "1965"]
[BlackElo "2167"]
[WhiteTitle "CM"]
[BlackTitle "CM"]
[WhiteClock "0:00:17"]
[BlackClock "0:00:02"]
[Variant "Standard"]
[EndDate "2026.07.19"]
[EndTime "15:24:35"]

1. d4 {[%clk 0:03:03]}  Nf6 {[%clk 0:03:02]} 2. Bg5 {[%clk 0:03:04]}  d5 {[%clk 0:03:02]} 3. e3 {[%clk 0:03:04]}  Nbd7 {[%clk 0:03:01]}
4. f4 {[%clk 0:02:59]}  e6 {[%clk 0:02:58]} 5. Nf3 {[%clk 0:02:59]}  Be7 {[%clk 0:02:57]} 6. Bd3 {[%clk 0:02:57]}  b6 {[%clk 0:02:57]}
7. O-O {[%clk 0:02:56]}  Bb7 {[%clk 0:02:58]} 8. Ne5 {[%clk 0:02:49]}  O-O {[%clk 0:02:47]} 9. Nd2 {[%clk 0:02:42]}  h6 {[%clk 0:02:42]}
10. Bh4 {[%clk 0:02:00]}  Ne4 {[%clk 0:02:41]} 11. Bxe7 {[%clk 0:01:55]}  Qxe7 {[%clk 0:02:42]} 12. Bxe4 {[%clk 0:01:39]}  dxe4 {[%clk 0:02:42]}
13. Nxd7 {[%clk 0:01:38]}  Qxd7 {[%clk 0:02:42]} 14. Qg4 {[%clk 0:01:34]}  c5 {[%clk 0:02:37]} 15. c3 {[%clk 0:01:31]}  cxd4 {[%clk 0:02:36]}
16. cxd4 {[%clk 0:01:32]}  Rac8 {[%clk 0:02:28]} 17. Rfc1 {[%clk 0:01:27]}  Qb5 {[%clk 0:02:21]} 18. Kf2 {[%clk 0:01:01]}  Qxb2 {[%clk 0:02:08]}
19. Qd1 {[%clk 0:00:47]}  f5 {[%clk 0:01:20]} 20. Rcb1 {[%clk 0:00:44]}  Qc3 {[%clk 0:01:09]} 21. Rc1 {[%clk 0:00:35]}  Qd3 {[%clk 0:01:06]}
22. Nb3 {[%clk 0:00:33]}  Qxd1 {[%clk 0:01:03]} 23. Rxd1 {[%clk 0:00:34]}  Rc2+ {[%clk 0:01:03]} 24. Rd2 {[%clk 0:00:35]}  Rfc8 {[%clk 0:01:02]}
25. Rad1 {[%clk 0:00:25]}  Bd5 {[%clk 0:01:02]} 26. Ke1 {[%clk 0:00:18]}  a5 {[%clk 0:01:02]} 27. Rxc2 {[%clk 0:00:10]}  Rxc2 {[%clk 0:01:03]}
28. Rd2 {[%clk 0:00:11]}  Bxb3 {[%clk 0:00:40]} 29. axb3 {[%clk 0:00:11]}  Rxd2 {[%clk 0:00:40]} 30. Kxd2 {[%clk 0:00:12]}  b5 {[%clk 0:00:40]}
31. Kc3 {[%clk 0:00:06]}  Kf7 {[%clk 0:00:40]} 32. h3 {[%clk 0:00:06]}  g5 {[%clk 0:00:36]} 33. g4 {[%clk 0:00:03]}  Kf6 {[%clk 0:00:27]}
34. Kd2 {[%clk 0:00:03]}  gxf4 {[%clk 0:00:22]} 35. exf4 {[%clk 0:00:03]}  Kg6 {[%clk 0:00:19]} 36. Ke3 {[%clk 0:00:03]}  Kf6 {[%clk 0:00:16]}
37. Kd2 {[%clk 0:00:05]}  Ke7 {[%clk 0:00:17]} 38. d5 {[%clk 0:00:04]}  exd5 {[%clk 0:00:16]} 39. Kc3 {[%clk 0:00:04]}  Kf6 {[%clk 0:00:15]}
40. Kd4 {[%clk 0:00:05]}  a4 {[%clk 0:00:16]} 41. bxa4 {[%clk 0:00:06]}  bxa4 {[%clk 0:00:17]} 42. Kc3 {[%clk 0:00:06]}  e3 {[%clk 0:00:17]}
43. Kd3 {[%clk 0:00:07]}  a3 {[%clk 0:00:17]} 44. Kd4 {[%clk 0:00:02]} 0-1

[Event "2026 Biel Blitz Open"]
[Site "Biel, CH"]
[Date "2026.07.19"]
[Round "11"]
[White "Nguyen Thi Mai Hung"]
[Black "Gluckman, David"]
[Result "1-0"]
[Board "18"]
[TimeControl "180+2"]
[WhiteFideId "12401676"]
[BlackFideId "14300010"]
[WhiteElo "2039"]
[BlackElo "2240"]
[WhiteTitle "WGM"]
[BlackTitle "IM"]
[WhiteClock "0:03:02"]
[BlackClock "0:01:04"]
[Variant "Standard"]
[EndDate "2026.07.19"]
[EndTime "15:31:23"]

1. d4 {[%clk 0:03:03]}  e6 {[%clk 0:03:02]} 2. Nf3 {[%clk 0:03:04]}  f5 {[%clk 0:03:03]} 3. Bf4 {[%clk 0:03:05]}  Nf6 {[%clk 0:03:03]}
4. e3 {[%clk 0:03:06]}  Be7 {[%clk 0:02:53]} 5. h3 {[%clk 0:03:05]}  O-O {[%clk 0:02:53]} 6. c4 {[%clk 0:03:06]}  b6 {[%clk 0:02:52]}
7. Nc3 {[%clk 0:03:07]}  Bb7 {[%clk 0:02:54]} 8. Bd3 {[%clk 0:03:08]}  h6 {[%clk 0:02:36]} 9. Qe2 {[%clk 0:03:02]}  d6 {[%clk 0:02:36]}
10. Bh2 {[%clk 0:02:49]}  Ne4 {[%clk 0:02:21]} 11. Bxe4 {[%clk 0:02:32]}  fxe4 {[%clk 0:02:21]} 12. Nd2 {[%clk 0:02:33]}  d5 {[%clk 0:02:14]}
13. O-O {[%clk 0:02:30]}  Bd6 {[%clk 0:02:02]} 14. Rac1 {[%clk 0:02:09]}  Bxh2+ {[%clk 0:01:50]} 15. Kxh2 {[%clk 0:02:10]}  Nd7 {[%clk 0:01:23]}
16. Qg4 {[%clk 0:02:02]}  Rf6 {[%clk 0:01:16]} 17. b4 {[%clk 0:00:48]}  Qe7 {[%clk 0:01:09]} 18. a3 {[%clk 0:00:49]}  c6 {[%clk 0:01:09]}
19. f3 {[%clk 0:00:49]}  exf3 {[%clk 0:01:09]} 20. Rxf3 {[%clk 0:00:50]}  Rf4 {[%clk 0:01:02]} 21. Rf2 {[%clk 0:03:02]}  Rf3 {[%clk 0:01:04]} 1-0